[Event "44th Chess Olympiad Open 2022"]
[Site "Chennai"]
[Date "2022.07.30"]
[Round "2.52"]
[White "Nassr, Ali"]
[Black "Chinasamy, Devarajen"]
[Result "1-0"]
[ECO "D13"]
[WhiteElo "2263"]
[BlackElo "1970"]
[Annotator "TA"]
[PlyCount "69"]
[EventDate "2022.07.29"]
[EventType "team-tourn"]
[EventCountry "IND"]
[SourceTitle "playchess.com"]
[Source "ChessBase"]
[SourceQuality "1"]
[WhiteTeam "Algeria"]
[BlackTeam "Mauritius"]
[WhiteTeamCountry "ALG"]
[BlackTeamCountry "MRI"]
[TimeControl "40/5400+30:1800+30"]

{[%evp 14,69,15,15,25,15,20,18,12,4,17,4,12,0,0,0,0,-6,82,75,70,51,78,74,85,95,103,83,111,89,245,222,222,218,215,226,221,201,293,285,376,386,376,368,480,450,488,475,429,372,428,445,635,639,611,581,896,762]} 1. d4 {[%emt 0:00:02]} d5 {[%emt 0:00:08]} 2. c4 {[%emt 0:00:32]} c6 {[%emt 0:00:10]} 3. Nc3 {[%emt 0:00:20]} Nf6 {[%emt 0:00:09]} 4. Nf3 {[%emt 0:00:51]} a6 {[%emt 0:00:13]} 5. cxd5 {[%emt 0:02:51]} cxd5 {[%emt 0:00:21]} 6. Bf4 {[%emt 0:00:01]} Nc6 {[%emt 0:01:34]} 7. e3 {[%emt 0:00:13] 7.Rc1 is the modern continuation.} Bg4 {[%emt 0:00:50]} 8. h3 {[%emt 0:01:32]} Bf5 {[%emt 0:06:29] [#] D13: Slav Defence: Exchange variation without ...Bf5.} 9. Bd3 $146 {[%emt 0:07:52]} ({Predecessor:} 9. Ne5 h6 10. g4 Bd7 11. Bd3 e6 12. Rc1 Rc8 13. h4 Nxe5 14. dxe5 Ne4 15. Nxe4 dxe4 16. Bxe4 {1-0 (40) Hari,M (2380)-Hriday,P (1691) Gurugram 2022}) 9... Bxd3 {[%emt 0:03:20]} 10. Qxd3 {[%emt 0:00:02]} e6 {[%emt 0:00:09] The position is equal.} 11. O-O {[%emt 0:01:03]} Be7 {[%emt 0:02:16]} 12. Rac1 {[%emt 0:04:09]} O-O {[%emt 0:00:56]} 13. a3 {[%emt 0:00:47]} Rc8 {[%emt 0:02:30]} 14. Na4 {[%emt 0:01:13]} Ne4 {[%emt 0:02:20]} 15. b4 {[%emt 0:00:51]} b5 {[%emt 0:04:38]} (15... Bd6 $11) 16. Nc5 $16 {[%emt 0:00:21]} Nxc5 {[%emt 0:02:35]} 17. dxc5 {[%emt 0:02:33]} f6 {[%emt 0:02:00]} 18. Qb3 {[%emt 0:02:31] White is much more active.} Kh8 {[%emt 0:03:46]} 19. Rcd1 {[%emt 0:06:21] Hoping for e4.} Qe8 {[%emt 0:01:00]} 20. Rfe1 {[%emt 0:00:49]} Qf7 {[%emt 0:03:28]} 21. Bg3 {[%emt 0:00:54]} Ne5 $2 {[%emt 0:01:38] Loses the game.} (21... f5 $16) 22. e4 {[%emt 0:08:01]} Nxf3+ {[%emt 0:06:24]} 23. Qxf3 {[%emt 0:00:15][%cal Re4d5]} ({Resist} 23. gxf3 $6 Rfd8 24. exd5 Rxd5 25. Rxd5 exd5) 23... dxe4 {[%emt 0:08:14]} 24. Qxe4 {[%emt 0:00:16]} e5 {[%emt 0:00:08]} 25. Rd7 {[%emt 0:01:10]} Rcd8 {[%emt 0:05:53]} (25... Rfe8 {was called for.} 26. Ra7 Qc4 27. Rxa6 Qxe4 28. Rxe4 Kg8) 26. Red1 {[%emt 0:01:23]} Rxd7 {[%emt 0:02:07]} 27. Rxd7 {[%emt 0:00:09]} Qe6 {[%emt 0:01:14]} 28. Ra7 {[%emt 0:04:21] Black must now prevent Qb7.} Rb8 {[%emt 0:06:42] Inhibits Qb7.} 29. Ra8 {[%emt 0:00:59]} Qc8 {[%emt 0:02:15] [#]} 30. Rxb8 {[%emt 0:00:08]} Qxb8 {[%emt 0:00:07]} 31. Qc6 {[%emt 0:00:06]} h6 {[%emt 0:00:40]} 32. Qxa6 {[%emt 0:00:54] White is clearly winning.} Bd8 {[%emt 0:00:43]} (32... h5 $142 33. Qe6 Qd8) 33. a4 $18 {[%emt 0:01:55]} bxa4 {[%emt 0:00:04]} 34. Qxa4 {[%emt 0:00:04] [#] Qe8+ is the strong threat.} f5 {[%emt 0:02:23]} 35. Qe8+ {[%emt 0:00:37] Weighted Error Value: White=0.07 (flawless) /Black=0.41} 1-0

[Event "44th Chess Olympiad Open 2022"]
[Site "Chennai"]
[Date "2022.07.30"]
[Round "2.52"]
[White "Djabri, Massinas"]
[Black "Goorsahye, Antoine"]
[Result "1-0"]
[ECO "A57"]
[WhiteElo "2206"]
[BlackElo "1783"]
[Annotator "TA"]
[PlyCount "79"]
[EventDate "2022.07.29"]
[EventType "team-tourn"]
[EventCountry "IND"]
[SourceTitle "playchess.com"]
[Source "ChessBase"]
[SourceQuality "1"]
[WhiteTeam "Algeria"]
[BlackTeam "Mauritius"]
[WhiteTeamCountry "ALG"]
[BlackTeamCountry "MRI"]
[TimeControl "40/5400+30:1800+30"]

{[%evp 17,79,14,21,0,0,0,0,0,0,0,0,0,20,-21,-6,-16,-18,-11,-12,-13,-20,-18,-14,-59,0,0,0,6,163,106,231,226,372,362,375,374,372,366,364,339,964,936,915,746,781,780,1561,1544,2770,2241,29986,29987,29990,29990,29991,29992,29992,29991,29992,29991,29991,29992,29992,29993]} 1. d4 {[%emt 0:00:08]} Nf6 {[%emt 0:00:14]} 2. c4 {[%emt 0:00:10]} c5 {[%emt 0:00:15]} 3. d5 {[%emt 0:01:41]} b5 {[%emt 0:00:30]} 4. cxb5 {[%emt 0:00:10]} a6 {[%emt 0:00:13]} 5. b6 {[%emt 0:00:09]} g6 {[%emt 0:00:42]} 6. Nc3 {[%emt 0:01:06]} Bg7 {[%emt 0:00:09]} 7. a4 {[%emt 0:00:11]} Qxb6 {[%emt 0:00:25]} 8. a5 {[%emt 0:00:10]} Qc7 {[%emt 0:00:56]} 9. e4 {[%emt 0:01:48]} d6 {[%emt 0:00:27]} 10. h3 {[%emt 0:02:48] A57: Benko/Volga Gambit.} O-O {[%emt 0:00:36]} 11. Nf3 {[%emt 0:00:13]} e6 {[%emt 0:01:02]} 12. Be2 {[%emt 0:01:59] The position is equal.} exd5 {[%emt 0:00:28]} 13. exd5 {[%emt 0:00:06] [#]} Re8 $146 {[%emt 0:00:43]} ({Predecessor:} 13... Bb7 14. O-O Nbd7 15. Bf4 Rfe8 16. Qd3 Nh5 17. Bh2 Re7 18. Nd2 Ne5 19. Qc2 Nf6 {0-1 (54) Chasovnikova,E (2304)-Trujillo Delgado,D (2146) Belgrade 2006}) 14. O-O {[%emt 0:00:13]} Nbd7 {[%emt 0:00:37]} 15. Ra4 {[%emt 0:22:01]} Rb8 {[%emt 0:03:15]} 16. Re1 {[%emt 0:05:16]} Rb4 {[%emt 0:01:19]} 17. Bc4 {[%emt 0:00:36]} Rxe1+ {[%emt 0:03:31]} 18. Qxe1 {[%emt 0:00:19]} Bb7 {[%emt 0:01:55]} 19. Qd1 {[%emt 0:13:00]} Qd8 {[%emt 0:04:04]} 20. Bf4 {[%emt 0:08:50]} Qe7 {[%emt 0:02:15]} ({Black should try} 20... Rxb2 $15 21. Qd3 Rb4) 21. Qd3 $11 {[%emt 0:16:38]} Nh5 {[%emt 0:18:22]} 22. Bg5 {[%emt 0:02:45]} f6 $2 {[%emt 0:03:07] Black is now going downhill.} (22... Bf6 $11 {and Black is okay.} 23. Bxf6 Nhxf6) 23. Bc1 {[%emt 0:05:30]} (23. Be3 $18) 23... Ne5 {[%emt 0:01:41]} (23... f5 $16) 24. Nxe5 $18 {[%emt 0:01:12]} Qxe5 {[%emt 0:00:37]} (24... fxe5 {keeps fighting.} 25. Rxb4 (25. Bxa6 e4 $11) 25... cxb4) 25. Rxb4 {[%emt 0:00:21]} cxb4 {[%emt 0:01:28]} 26. Ne2 {[%emt 0:00:30]} f5 {[%emt 0:01:24]} 27. Bxa6 {[%emt 0:10:32]} Bxd5 {[%emt 0:06:10]} 28. Bc4 {[%emt 0:01:14]} Bf7 {[%emt 0:09:20]} (28... Nf6 29. a6 Kh8 30. Bxd5 Qxd5) 29. Bxf7+ {[%emt 0:01:07]} Kxf7 {[%emt 0:00:04]} 30. Qc4+ {[%emt 0:00:22]} d5 {[%emt 0:00:32]} 31. Qb5 {[%emt 0:00:26] [#] Threatens to win with a6.} Bf8 {[%emt 0:02:04]} 32. a6 {[%emt 0:01:03]} Bd6 {[%emt 0:00:38]} 33. a7 {[%emt 0:01:00]} Qh2+ {[%emt 0:02:12]} 34. Kf1 {[%emt 0:00:04] White mates.} Qh1+ {[%emt 0:00:29]} 35. Ng1 {[%emt 0:00:06]} Bh2 {[%emt 0:01:37]} 36. Qxd5+ {[%emt 0:00:49]} Kf6 {[%emt 0:00:39]} 37. Qd4+ {[%emt 0:00:22]} Kf7 {[%emt 0:00:43]} 38. Qc4+ {[%emt 0:00:12]} Kf6 {[%emt 0:00:47] [#]} 39. a8=Q $1 {[%emt 0:00:28]} Qxg1+ {[%emt 0:04:12]} (39... Ng3+ 40. fxg3) 40. Ke2 {[%emt 0:00:11] Weighted Error Value: White=0.07 (flawless) /Black=0.46} 1-0

[Event "44th Chess Olympiad Open 2022"]
[Site "Chennai"]
[Date "2022.07.30"]
[Round "2.52"]
[White "Marie, Patrick"]
[Black "Araoun, Saadi"]
[Result "0-1"]
[ECO "E97"]
[WhiteElo "1921"]
[BlackElo "2049"]
[Annotator "TA"]
[PlyCount "84"]
[EventDate "2022.07.29"]
[EventType "team-tourn"]
[EventCountry "IND"]
[SourceTitle "playchess.com"]
[Source "ChessBase"]
[SourceQuality "1"]
[WhiteTeam "Mauritius"]
[BlackTeam "Algeria"]
[WhiteTeamCountry "MRI"]
[BlackTeamCountry "ALG"]
[TimeControl "40/5400+30:1800+30"]

{[%evp 16,84,0,0,87,-11,-4,-39,-41,-52,-47,-67,-68,-70,-52,-159,-152,-153,-147,-252,-213,-289,-244,-245,-211,-220,-146,-475,-365,-350,-350,-408,-353,-361,-343,-369,-379,-375,-368,-365,-362,-402,-363,-366,-366,-363,-363,-363,-347,-375,-375,-375,-375,-693,-375,-1491,-1492,-1501,-1450,-1381,-1155,-1625,-1380,-29968,-29973,-29979,-29980,-29981,-29977,-12839,-12835]} 1. d4 {[%emt 0:00:06]} Nf6 {[%emt 0:00:13]} 2. c4 {[%emt 0:00:13]} g6 {[%emt 0:00:06]} 3. Nc3 {[%emt 0:00:15]} Bg7 {[%emt 0:00:06]} 4. e4 {[%emt 0:00:15]} d6 {[%emt 0:00:17]} 5. Nf3 {[%emt 0:00:14]} O-O {[%emt 0:00:19]} 6. Be2 {[%emt 0:00:05]} e5 {[%emt 0:00:27]} 7. O-O {[%emt 0:02:45]} Nc6 {[%emt 0:00:57]} 8. dxe5 {[%emt 0:03:14]} dxe5 {[%emt 0:01:43]} 9. Bg5 {[%emt 0:02:26]} Qe8 {[%emt 0:14:09] E97: King's Indian: Classical Main Line (6...e5 7 0-0 Nc6): 8 Be3 and 8 d5 Ne7, not 9 Ne1.} (9... Bg4 $11 {keeps the balance.}) 10. Qd2 {[%emt 0:06:12]} (10. Nd5 $16 Nxd5 11. cxd5) 10... Bg4 $11 {[%emt 0:09:30]} 11. Bxf6 {[%emt 0:07:37]} Bxf6 {[%emt 0:00:18][%cal Bg7f6,Bf6d8,Bd8a5][%mdl 32] Black is slightly better.} 12. Nd5 {[%emt 0:00:02]} Bd8 {[%emt 0:03:02] [#]} 13. Rac1 $146 {[%emt 0:16:14]} ({Predecessor:} 13. Ne1 Bxe2 14. Qxe2 Nd4 15. Qd3 c6 16. Ne3 Bb6 17. b4 Rd8 18. Ng4 f5 19. exf5 gxf5 {0-1 (36) Hernandez Bacallado,B-Fischer,D Las Palmas 1997}) 13... Bxf3 {[%emt 0:05:04]} 14. Bxf3 {[%emt 0:00:02]} Nd4 {[%emt 0:00:20]} 15. Rc3 {[%emt 0:00:49]} (15. Qd3 $15) 15... c6 $17 {[%emt 0:00:49][%cal Bc7c6,Bc6c5,Bc5b4][%mdl 32]} 16. Nb4 {[%emt 0:02:30]} Ba5 $36 {[%emt 0:09:06][%mdl 2048] Keeping White busy.} 17. Rd3 {[%emt 0:00:38]} (17. a3 $17) 17... Qe6 {[%emt 0:25:31] And now ...c5 would win.} (17... c5 18. Nd5 Bxd2 19. Nf6+ Kg7 20. Nxe8+ Rfxe8 21. Rxd2 $17) 18. Bd1 {[%emt 0:00:24]} c5 {[%emt 0:07:42]} ({Not} 18... Qxc4 $2 19. Rh3 f6 20. a3 $19) 19. Qh6 {[%emt 0:00:02][%cal Od3h3]} cxb4 {[%emt 0:01:53]} 20. Rh3 {[%emt 0:00:02][%csl Gh3][%cal Rh6h7] [#]} Rfd8 {[%emt 0:00:33] Threatens to win with ...Qf6.} 21. Bg4 $2 {[%emt 0:04:40][%mdl 8192]} (21. f4 $17 {is tougher.} Bb6 22. Qxh7+ Kf8 23. fxe5) 21... Qf6 {[%emt 0:02:24]} 22. Qxh7+ {[%emt 0:00:55]} Kf8 {[%emt 0:00:02][%cal Bg8f8,Bf8e7,Be7f6,Bf6g7][%mdl 32]} 23. c5 {[%emt 0:04:10]} Ke7 {[%emt 0:01:25] [#] Strongly threatening ...Rh8.} 24. Qh6 {[%emt 0:02:01]} g5 {[%emt 0:01:12]} 25. Qxf6+ {[%emt 0:02:05]} Kxf6 {[%emt 0:00:06]} 26. Rh6+ {[%emt 0:00:40]} Kg7 {[%emt 0:01:08]} 27. Rd6 {[%emt 0:00:44]} Bc7 {[%emt 0:02:23]} 28. Rd5 {[%emt 0:00:01]} Ne6 {[%emt 0:04:55]} 29. Rfd1 {[%emt 0:06:32]} Rxd5 {[%emt 0:00:23]} 30. Rxd5 {[%emt 0:01:21]} Rd8 {[%emt 0:00:28]} 31. Rxd8 {[%emt 0:00:04]} Bxd8 {[%emt 0:00:19]} (31... Nxd8 $2 {perishes.} 32. Kf1 $19) 32. Bxe6 {[%emt 0:00:06]} fxe6 $19 {[%emt 0:00:04][%mdl 4096] Endgame KB-KP} 33. Kf1 {[%emt 0:00:01]} Be7 {[%emt 0:00:25] aiming for ...b3.} 34. Ke2 $2 {[%emt 0:00:14]} (34. b3) 34... Bxc5 {[%emt 0:00:06]} 35. f3 $2 {[%emt 0:00:01]} (35. b3) 35... Kf6 {[%emt 0:01:14]} 36. g3 {[%emt 0:00:05]} Bg1 {[%emt 0:00:46]} 37. h3 {[%emt 0:00:37]} Ke7 {[%emt 0:00:38]} 38. Kd3 {[%emt 0:01:11]} b5 {[%emt 0:00:17]} 39. b3 {[%emt 0:00:26]} Bf2 {[%emt 0:00:14]} 40. g4 {[%emt 0:00:02]} Kd6 {[%emt 0:00:06]} 41. Kc2 {[%emt 0:31:18]} Kc5 {[%emt 0:30:05]} 42. Kd3 {[%emt 0:00:57]} Bg3 {[%emt 0:02:55] White did not feel at home in the position after the opening.  Weighted Error Value: White=0.98/Black=0.38} 0-1

[Event "44th Chess Olympiad Open 2022"]
[Site "Chennai"]
[Date "2022.07.30"]
[Round "2.52"]
[White "Naipal, Hoolan"]
[Black "Brahami, Lamine"]
[Result "0-1"]
[ECO "B51"]
[WhiteElo "1785"]
[BlackElo "2189"]
[Annotator "TA"]
[PlyCount "100"]
[EventDate "2022.07.29"]
[EventType "team-tourn"]
[EventCountry "IND"]
[SourceTitle "playchess.com"]
[Source "ChessBase"]
[SourceQuality "1"]
[WhiteTeam "Mauritius"]
[BlackTeam "Algeria"]
[WhiteTeamCountry "MRI"]
[BlackTeamCountry "ALG"]
[TimeControl "40/5400+30:1800+30"]

{[%evp 9,100,16,21,23,31,23,34,27,29,29,33,26,25,22,22,0,14,0,0,0,8,0,0,0,0,0,42,22,58,46,60,50,94,101,111,41,96,99,168,158,164,165,161,138,150,160,185,19,26,26,26,20,19,25,19,26,20,27,52,0,20,0,2,0,43,2,11,-12,0,-37,-4,-213,-211,-192,-97,-190,-185,-178,-174,-394,-387,-569,-570,-569,-368,-547,-542,-584,-451,-6011,-5979,-5573,-5382]} 1. e4 {[%emt 0:00:09]} c5 {[%emt 0:00:22]} 2. Nf3 {[%emt 0:00:11]} d6 {[%emt 0:00:18]} 3. Bb5+ {[%emt 0:00:17]} Nd7 {[%emt 0:01:28]} 4. O-O {[%emt 0:00:22]} e6 {[%emt 0:01:10]} 5. c3 {[%emt 0:01:03]} a6 {[%emt 0:04:05]} 6. Bd3 {[%emt 0:01:05] B51: Sicilian: Moscow Variation (3 Bb5+) without 3...Bd7.} Ne7 {[%emt 0:03:43]} 7. Bc2 {[%emt 0:00:31]} Ng6 {[%emt 0:00:53]} 8. d4 {[%emt 0:00:22] White is slightly better.} Be7 {[%emt 0:00:36] [#]} 9. a4 $146 {[%emt 0:11:50]} ({Predecessor:} 9. Re1 Qc7 10. Nbd2 b6 11. Nf1 Bb7 12. d5 O-O 13. a4 Bf6 14. Ne3 c4 15. Qe2 Rac8 {½-½ (15) Vaseptsov,M (2274)-Gutenev,A (2407) Cheliabinsk 2016}) 9... b6 {[%emt 0:03:44]} 10. Qe2 {[%emt 0:01:23]} O-O {[%emt 0:06:05]} 11. Rd1 {[%emt 0:08:27]} Qc7 {[%emt 0:03:17]} 12. Be3 {[%emt 0:06:05]} Bb7 {[%emt 0:03:35]} 13. Nbd2 {[%emt 0:06:55]} cxd4 {[%emt 0:12:36]} 14. Nxd4 {[%emt 0:00:36]} Rfe8 {[%emt 0:00:53]} 15. Rac1 {[%emt 0:14:40]} Bf8 {[%emt 0:12:50]} 16. f3 {[%emt 0:09:32]} d5 {[%emt 0:02:49]} 17. exd5 {[%emt 0:07:57]} exd5 {[%emt 0:08:43]} 18. Qf2 {[%emt 0:08:57]} Bc5 {[%emt 0:04:36]} 19. Re1 {[%emt 0:07:29]} Re5 {[%emt 0:08:18]} 20. Nf1 {[%emt 0:04:55]} Nf6 {[%emt 0:04:28]} 21. b4 {[%emt 0:03:58]} Bf8 {[%emt 0:04:32]} 22. Nf5 {[%emt 0:00:22]} (22. Nb3 $1 $16) 22... Qd7 {[%emt 0:04:27]} (22... Re6 $14) 23. N1g3 $16 {[%emt 0:01:11]} Rxe3 {[%emt 0:07:15]} 24. Qxe3 $18 {[%emt 0:00:37]} Qc7 {[%emt 0:00:34]} 25. Bb3 {[%emt 0:00:54]} a5 {[%emt 0:00:19]} 26. Nd4 {[%emt 0:02:04]} axb4 {[%emt 0:00:52]} 27. cxb4 {[%emt 0:00:08]} Qd6 {[%emt 0:00:37]} 28. Qd2 {[%emt 0:00:27]} (28. Nc2 $18) 28... Qxb4 $11 {[%emt 0:00:31]} 29. Qxb4 {[%emt 0:00:36]} Bxb4 {[%emt 0:00:06]} 30. Red1 {[%emt 0:00:14]} Bc5 {[%emt 0:01:00]} 31. Kh1 {[%emt 0:01:02]} h5 {[%emt 0:00:28]} 32. Nge2 {[%emt 0:01:17]} h4 {[%emt 0:00:41]} 33. h3 {[%emt 0:00:50]} Ba6 {[%emt 0:00:35]} 34. Nc3 {[%emt 0:00:15]} ({White should try} 34. a5 $14) 34... Nf4 {[%emt 0:00:22]} 35. Ncb5 {[%emt 0:00:27][%cal Oa4a5]} Rd8 {[%emt 0:00:39]} 36. Kh2 {[%emt 0:00:31][%cal Oa4a5]} Bc8 {[%emt 0:00:23]} 37. Bc2 {[%emt 0:00:44]} g6 {[%emt 0:00:21]} 38. Kh1 {[%emt 0:00:22]} Bd7 {[%emt 0:00:26]} 39. Kh2 {[%emt 0:00:12]} N6h5 {[%emt 0:00:31] Black wants to play ...Bxb5.} (39... Bxb5 $5 40. Nxb5 (40. axb5 Bxd4 41. Rxd4 Ne2 $17) 40... Be3 $11) 40. Re1 $2 {[%emt 0:00:52]} (40. Bb3 $11) 40... Bxb5 $19 {[%emt 0:00:34]} 41. Nxb5 {[%emt 0:30:15] [#]} d4 {[%emt 0:30:11]} ({Black should play} 41... Bf2 $1 $19 42. Red1 Be3) 42. Rcd1 {[%emt 0:00:50]} (42. Red1 $17 {might work better.}) 42... d3 {[%emt 0:00:22][%cal Bd4d3,Bd3d2][%mdl 32]} 43. Bb3 {[%emt 0:00:21] [#]} Ng3 $1 {[%emt 0:01:11] ...d2 is the strong threat.} 44. Nc3 $2 {[%emt 0:00:44]} (44. Re5 {was worth a try.} Kg7 45. a5) 44... Bb4 {[%emt 0:00:24]} 45. Ne4 {[%emt 0:00:18]} (45. Re4 $142 Nxe4 46. Nxe4) 45... Bxe1 {[%emt 0:00:00]} 46. Rxe1 {[%emt 0:00:00]} Nxe4 {[%emt 0:00:00]} 47. fxe4 {[%emt 0:00:00]} (47. Rxe4 $142 Ne2 48. Re7) 47... d2 {[%emt 0:00:00] Black is clearly winning.} 48. Rf1 {[%emt 0:00:00]} g5 {[%emt 0:00:00]} 49. g3 {[%emt 0:00:00]} (49. Bd1 $142 Nd3 50. Bb3) 49... hxg3+ {[%emt 0:00:00]} 50. Kxg3 {[%emt 0:00:12]} Rd3+ {[%emt 0:00:00] What a bad dream for White.  Weighted Error Value: White=0.59/Black=0.23 (precise)} 0-1

[Event "44th Chess Olympiad Open 2022"]
[Site "Chennai"]
[Date "2022.07.30"]
[Round "2.53"]
[White "Ahmad, Al Khatib"]
[Black "Salim Mohammed, Salim Al Amri"]
[Result "0-1"]
[ECO "B57"]
[WhiteElo "2244"]
[BlackElo "1917"]
[Annotator "TA"]
[PlyCount "100"]
[EventDate "2022.07.29"]
[EventType "team-tourn"]
[EventCountry "IND"]
[SourceTitle "playchess.com"]
[Source "ChessBase"]
[SourceQuality "1"]
[WhiteTeam "Jordan"]
[BlackTeam "OMA"]
[WhiteTeamCountry "JOR"]
[TimeControl "40/5400+30:1800+30"]

{[%evp 16,100,57,-10,-31,-27,-17,-72,-18,-73,-89,-82,-79,-100,-87,-379,-366,-385,-358,-358,-370,-335,-337,-332,-314,-321,-287,-282,-274,-285,-285,-269,-271,-300,-304,-338,-330,-369,-353,-519,-514,-491,-497,-605,-512,-570,-566,-549,-565,-554,-540,-683,-581,-681,-676,-813,-764,-962,-962,-29988,-29989,-29990,-29991,-29991,-29991,-29992,-29993,-29993,-29994,-29994,-29994,-29994,-29994,-29994,-29995,-29995,-29996,-29996,-29996,-29996,-29996,-29996,-29997,-29997,-29998,-29998,-29999]} 1. e4 {[%emt 0:00:03]} c5 {[%emt 0:00:07]} 2. Nf3 {[%emt 0:00:05]} Nc6 {[%emt 0:01:04]} 3. d4 {[%emt 0:00:05]} cxd4 {[%emt 0:00:08]} 4. Nxd4 {[%emt 0:00:05]} Nf6 {[%emt 0:00:55]} 5. Nc3 {[%emt 0:00:04]} d6 {[%emt 0:00:57]} 6. Bc4 {[%emt 0:01:47]} g6 {[%emt 0:06:30]} 7. Nxc6 {[%emt 0:17:11]} bxc6 {[%emt 0:00:03]} 8. e5 {[%emt 0:00:23]} Ng4 {[%emt 0:08:05]} 9. e6 {[%emt 0:01:33]} ({White should try} 9. Bf4 $14) 9... f5 $11 {[%emt 0:00:58] B57: Classical Sicilian: Sozin with 6...Qb6.} 10. Bf4 {[%emt 0:09:58]} Bg7 {[%emt 0:07:29] Strongly threatening ...Qb6.} 11. Qf3 {[%emt 0:18:59]} (11. O-O $11) 11... Qb6 {[%emt 0:05:46]} ({Black should play} 11... O-O $17) 12. O-O {[%emt 0:00:59] [#]} (12. Bb3 $1 $11) 12... Ne5 $146 {[%emt 0:01:23]} ({Predecessor:} 12... O-O 13. Bxd6 Qxb2 14. Qxc6 Qxc3 15. Bxe7 Bb7 16. Qxb7 Qxc4 17. Bxf8 Rxf8 18. e7 Re8 {½-½ (31) Vandivier,D (1917)-Davidovich,M (2033) Flint 2002}) 13. Bxe5 {[%emt 0:02:22]} Bxe5 {[%emt 0:00:03]} 14. Bb5 {[%emt 0:07:28]} Bb7 {[%emt 0:05:14]} 15. Nd5 $2 {[%emt 0:01:03][%mdl 8192] [#]} cxb5 $19 {[%emt 0:01:35]} 16. Nxb6 {[%emt 0:04:30]} Bxf3 {[%emt 0:00:17] A strong pair of Bishops.} 17. Nxa8 {[%emt 0:00:06]} Bxa8 {[%emt 0:00:06]} 18. c3 {[%emt 0:03:51]} f4 {[%emt 0:00:41]} 19. a4 {[%emt 0:00:34]} b4 {[%emt 0:00:28]} 20. cxb4 {[%emt 0:00:37]} O-O {[%emt 0:00:30]} ({Don't blunder} 20... Bxb2 $2 21. Rab1 Bf6 22. Rfc1 $19) 21. Rac1 {[%emt 0:02:39]} d5 {[%emt 0:01:31]} (21... Bxb2 22. Rc7 $17) 22. Rfe1 {[%emt 0:03:01]} Bd6 {[%emt 0:02:34]} ({Inferior is} 22... Bxb2 23. Rc7 $17) 23. b5 {[%emt 0:01:15]} Kg7 {[%emt 0:00:27]} 24. f3 {[%emt 0:11:51]} Kf6 {[%emt 0:00:22]} 25. Re2 {[%emt 0:01:41]} Rb8 {[%emt 0:00:34]} 26. Kf1 {[%emt 0:04:02]} Bb7 {[%emt 0:02:55]} 27. g4 {[%emt 0:07:11]} (27. Ree1 {was called for.}) 27... fxg3 {[%emt 0:01:27]} 28. hxg3 {[%emt 0:00:01]} Bxg3 {[%emt 0:00:07]} 29. a5 {[%emt 0:00:56]} Bc8 {[%emt 0:02:46]} 30. Kg2 {[%emt 0:00:36]} Bd6 {[%emt 0:00:19]} 31. Rc6 {[%emt 0:00:32]} Bxe6 {[%emt 0:01:29]} 32. b6 {[%emt 0:00:01]} axb6 {[%emt 0:00:39]} 33. a6 {[%emt 0:00:01]} h5 {[%emt 0:00:40][%cal Bh7h5,Bh5h4,Bh4h3][%mdl 32]} 34. b4 {[%emt 0:00:22]} h4 {[%emt 0:01:15]} 35. b5 {[%emt 0:01:01]} h3+ {[%emt 0:00:10]} 36. Kh1 {[%emt 0:00:37]} Bd7 {[%emt 0:00:56]} 37. Rxb6 {[%emt 0:00:58]} Rxb6 {[%emt 0:00:10] Black mates.} 38. a7 {[%emt 0:00:29]} Rxb5 {[%emt 0:00:15]} 39. Re1 {[%emt 0:00:32]} Ra5 {[%emt 0:00:13]} 40. Rd1 {[%emt 0:00:30]} Rxa7 {[%emt 0:00:06]} 41. Kg1 {[%emt 0:30:16]} Bg3 {[%emt 0:30:14]} 42. Rb1 {[%emt 0:00:31]} d4 {[%emt 0:00:15]} 43. Rc1 {[%emt 0:00:40]} e6 {[%emt 0:00:09]} 44. Kf1 {[%emt 0:00:19]} Ra2 {[%emt 0:00:10]} 45. Kg1 {[%emt 0:00:35] [#]} Bc6 $1 {[%emt 0:00:18]} 46. Rf1 {[%emt 0:00:37]} d3 {[%emt 0:00:14]} 47. Kh1 {[%emt 0:00:30]} Kg7 {[%emt 0:00:23]} 48. Kg1 {[%emt 0:00:27]} d2 {[%emt 0:00:40]} 49. Rb1 {[%emt 0:00:34]} d1=Q+ {[%emt 0:00:14]} 50. Rxd1 {[%emt 0:00:04]} h2+ {[%emt 0:00:06] Black took control after the opening.  Weighted Error Value: White=0.65/Black=0.11 (very precise)} 0-1